Workbook

Sheet UPS ONLINE
A1: UPO11-1 | D1: UPO11-2 | G1: UPO11-3 | J1: UPO11-1RT/AX | M1: UPO11-2RT/AX | P1: UPO11-3RT/AX
A2: Potencia (VA) | B2: 1000 | D2: Potencia (VA) | E2: 2000 | G2: Potencia (VA) | H2: 3000 | J2: Potencia (VA) | K2: 1000 | M2: Potencia (VA) | N2: 2000 | P2: Potencia (VA) | Q2: 3000
A3: Carga (VA) | B3: 1000 | D3: Carga (VA) | E3: 2000 | G3: Carga (VA) | H3: 3000 | J3: Carga (VA) | K3: 1000 | M3: Carga (VA) | N3: 2000 | P3: Carga (VA) | Q3: 3000
A4: Factor de Pot. | B4: 0.8 | D4: Factor de Pot. | E4: 0.8 | G4: Factor de Pot. | H4: 0.8 | J4: Factor de Pot. | K4: 0.9 | M4: Factor de Pot. | N4: 0.9 | P4: Factor de Pot. | Q4: 0.9
A5: Factor de Carga | B5: =B3/B2 -> 1 | D5: Factor de Carga | E5: =E3/E2 -> 1 | G5: Factor de Carga | H5: =H3/H2 -> 1 | J5: Factor de Carga | K5: =K3/K2 -> 1 | M5: Factor de Carga | N5: =N3/N2 -> 1 | P5: Factor de Carga | Q5: =Q3/Q2 -> 1
A6: Potencia (W)) | B6: 500 | D6: Potencia (W)) | E6: 300 | G6: Potencia (W)) | H6: 1200 | J6: Potencia (W)) | K6: 400 | M6: Potencia (W)) | N6: 300 | P6: Potencia (W)) | Q6: 3000
A7: No Baterías | B7: 8 | D7: No Baterías | E7: 12 | G7: No Baterías | H7: 6 | J7: No Baterías | K7: 8 | M7: No Baterías | N7: 30 | P7: No Baterías | Q7: 66
A8: Cap. Bat. (Ah) | B8: 9 | D8: Cap. Bat. (Ah) | E8: 9 | G8: Cap. Bat. (Ah) | H8: 9 | J8: Cap. Bat. (Ah) | K8: 9 | M8: Cap. Bat. (Ah) | N8: 7 | P8: Cap. Bat. (Ah) | Q8: 9
A10: Id= | B10: =B6/(0.85*B7*10) -> 7.352941176 | D10: Id= | E10: =E6/(0.85*E7*10) -> 2.941176471 | G10: Id= | H10: =H6/(0.85*H7*10) -> 23.52941176 | J10: Id= | K10: =K6/(0.85*K7*10) -> 5.882352941 | M10: Id= | N10: =N6/(0.85*N7*10) -> 1.176470588 | P10: Id= | Q10: =Q6/(0.85*Q7*10) -> 5.347593583
A11: C= | B11: =B10/B8 -> 0.8169934641 | D11: C= | E11: =E10/E8 -> 0.3267973856 | G11: C= | H11: =H10/H8 -> 2.614379085 | J11: C= | K11: =K10/K8 -> 0.6535947712 | M11: C= | N11: =N10/N8 -> 0.1680672269 | P11: C= | Q11: =Q10/Q8 -> 0.5941770648
A12: (Td)= | B12: =B8*60/(B10*SQRT(B11/2+1.05)) -> 60.81069095 | C12: minutos | D12: (Td)= | E12: =$E$8*60/($E$10*SQRT($E$11/2+1.05)) -> 166.6751734 | F12: minutos | G12: (Td)= | H12: =H8*60/(H10*SQRT(H11/2+1.05)) -> 14.94808081 | I12: minutos | J12: (Td)= | K12: =K8*60/(K10*SQRT(K11/2+1.05)) -> 78.23618498 | L12: minutos | M12: (Td)= | N12: =N8*60/(N10*SQRT(N11/2+1.05)) -> 335.2395526 | O12: minutos | P12: (Td)= | Q12: =Q8*60/(Q10*SQRT(Q11/2+1.05)) -> 87.00361478 | R12: minutos
A13: Autonomía = | B13: =IF(B12/60>1,INT(B12/60),0) -> 1 | C13: horas | D13: Autonomía = | E13: =IF(E12/60>1,INT(E12/60),0) -> 2 | F13: horas | G13: Autonomía = | H13: =IF(H12/60>1,INT(H12/60),0) -> 0 | I13: horas | J13: Autonomía = | K13: =IF(K12/60>1,INT(K12/60),0) -> 1 | L13: horas | M13: Autonomía = | N13: =IF(N12/60>1,INT(N12/60),0) -> 5 | O13: horas | P13: Autonomía = | Q13: =IF(Q12/60>1,INT(Q12/60),0) -> 1 | R13: horas
B14: =B12-B13*60 -> 0.8106909477 | C14: minutos | E14: =E12-E13*60 -> 46.67517335 | F14: minutos | H14: =H12-H13*60 -> 14.94808081 | I14: minutos | K14: =K12-K13*60 -> 18.23618498 | L14: minutos | N14: =N12-N13*60 -> 35.23955258 | O14: minutos | Q14: =Q12-Q13*60 -> 27.00361478 | R14: minutos
A16: UPO22 6 / UPO22 6 RT | D16: UPO22-10 / UPO22 10 RT | G16: UPO22-15 | J16: UPO33-PF365
A17: Potencia (VA) | B17: 6000 | D17: Potencia (VA) | E17: 10000 | G17: Potencia (VA) | H17: 15000 | J17: Potencia (VA) | K17: 900000
A18: Carga (VA) | B18: 6000 | D18: Carga (VA) | E18: 9000 | G18: Carga (VA) | H18: 15000 | J18: Carga (VA) | K18: 900000
A19: Factor de Pot. | B19: 0.9 | D19: Factor de Pot. | E19: 0.9 | G19: Factor de Pot. | H19: 0.7 | J19: Factor de Pot. | K19: 0.9
A20: Factor de Carga | B20: =B18/B17 -> 1 | D20: Factor de Carga | E20: =E18/E17 -> 0.9 | G20: Factor de Carga | H20: =H18/H17 -> 1 | J20: Factor de Carga | K20: =K18/K17 -> 1
A21: Potencia (W)) | B21: 6000 | D21: Potencia (W)) | E21: 10000 | G21: Potencia (W)) | H21: 15000 | J21: Potencia (W)) | K21: =K19*K17*K20 -> 810000
A22: No Baterías | B22: 20 | D22: No Baterías | E22: 60 | G22: No Baterías | H22: 48 | J22: No Baterías | K22: 17
A23: Cap. Bat. (Ah) | B23: 7 | D23: Cap. Bat. (Ah) | E23: 9 | G23: Cap. Bat. (Ah) | H23: 7 | J23: Cap. Bat. (Ah) | K23: 38
A25: Id= | B25: =B21/(0.85*B22*10) -> 35.29411765 | D25: Id= | E25: =E21/(0.85*E22*10) -> 19.60784314 | G25: Id= | H25: =H21/(0.85*H22*10) -> 36.76470588 | J25: Id= | K25: =K21/(0.85*K22*10) -> 5605.536332
A26: C= | B26: =B25/B23 -> 5.042016807 | D26: C= | E26: =E25/E23 -> 2.178649237 | G26: C= | H26: =H25/H23 -> 5.25210084 | J26: C= | K26: =K25/K23 -> 147.514114
A27: (Td)= | B27: =B23*60/(B25*SQRT(B26/2+1.05)) -> 6.297258558 | C27: minutos | D27: (Td)= | E27: =$E$23*60/($E$25*SQRT($E$26/2+1.05)) -> 18.82892786 | F27: minutos | G27: (Td)= | H27: =H23*60/(H25*SQRT(H26/2+1.05)) -> 5.95836995 | I27: minutos | J27: (Td)= | K27: =K23*60/(K25*SQRT(K26/2+1.05)) -> 0.04702690426 | L27: minutos
A28: Autonomía = | B28: =IF(B27/60>1,INT(B27/60),0) -> 0 | C28: horas | D28: Autonomía = | E28: =IF(E27/60>1,INT(E27/60),0) -> 0 | F28: horas | G28: Autonomía = | H28: =IF(H27/60>1,INT(H27/60),0) -> 0 | I28: horas | J28: Autonomía = | K28: =IF(K27/60>1,INT(K27/60),0) -> 0 | L28: horas
B29: =B27-B28*60 -> 6.297258558 | C29: minutos | E29: =E27-E28*60 -> 18.82892786 | F29: minutos | H29: =H27-H28*60 -> 5.95836995 | I29: minutos | K29: =K27-K28*60 -> 0.04702690426 | L29: minutos

Sheet Baterias internas de cada UPO
B6: UPS | C6: Cantidad Baterias Orginal | D6: AH | E6: Baterias X banco Adicional | F6: Maximo de bancos
B7: UPO11-1 (TORRE) | C7: 2 | D7: 9 | E7: 6 | G7: Consultar con Ingeniero de marca los bancos maximos de este modelo
B8: UPO11-2 | C8: 4 | D8: 9 | E8: 6 // 12 | G8: Consultar con Ingeniero de marca los bancos maximos de este modelo
B9: UPO11-3 | C9: 6 | D9: 9 | E9: 6 // 12 | G9: Consultar con Ingeniero de marca los bancos maximos de este modelo
B10: UPO11-1 AX | C10: 3 | D10: 9 | E10: 6 | F10: 3 Bancos
B11: UPO11-2 AX | C11: 6 | D11: 9 | E11: 6 // 12 | F11: 3 Bancos
B12: UPO11-3 AX | C12: 6 | D12: 9 | E12: 12 | F12: 3 Bancos
B14: UPO11-1 RT | C14: 2 | D14: 9 | E14: 6 | G14: Consultar con Ingeniero de marca los bancos maximos de este modelo
B15: UPO11-2 RT | C15: 4 | D15: 9 | E15: 6 // 12 | G15: Consultar con Ingeniero de marca los bancos maximos de este modelo
B16: UPO11-3 RT | C16: 6 | E16: 6 // 12 | G16: Consultar con Ingeniero de marca los bancos maximos de este modelo
B17: UPO11-1 RT AX | C17: 2 | D17: 9 | E17: 6 | F17: 3 Bancos
B18: UPO11-2 RT AX | C18: 4 | D18: 9 | E18: 8 | F18: 3 Bancos
B19: UPO11-3 RT AX | C19: 6 | D19: 9 | E19: 12 | F19: 3 Bancos
B21: UPO22-6 | C21: 20 | D21: 7 | E21: 40 | F21: 3 Bancos
B22: UPO22-10 | C22: 20 | D22: 9 | E22: 40 | F22: 3 Bancos
B23: UPO22-6 RT | C23: 20 | D23: 7 | E23: 20 | F23: 5 Bancos
B24: UPO22-10 RT | C24: 20 | D24: 9 | E24: 20 | F24: 5 Bancos
B25: UPO22-15 | C25: 48 | D25: 7 | E25: 48 | F25: 4 Bancos
B27: UPO33-20 | C27: 17 | D27: 38 | E27: 17 | F27: 4 Bancos
B28: UPO33-30 | C28: 17 | D28: 38 | E28: 17 | F28: 4 Bancos
B29: UPO33-40 | C29: 17 | D29: 65 | E29: 17 | F29: 4 Bancos
B30: UPO33-60 | C30: 17 | D30: 100 | E30: 17 | F30: 4 Bancos
B31: UPO33-80 | C31: 40 | D31: 65 | E31: 40 | F31: 4 Bancos
B32: UPO33-100 | C32: 40 | D32: 65 | E32: 40 | F32: 4 Bancos
B33: UPO33-120 | C33: 40 | D33: 100 | E33: 40 | F33: 4 Bancos
B34: UPO33-160 | C34: 40 | D34: 100 | E34: 40 | F34: 4 Bancos
B35: UPO33-200 | C35: 40 | D35: 100 | E35: 40 | F35: 4 Bancos
